[Event "Budapest Chess Festival 2024"]
[Site "Budapest"]
[Date "2024.05.24"]
[Round "2.6"]
[White "Dragnev, Valentin"]
[Black "Goroshkov, Maksym"]
[Result "1-0"]
[ECO "C84"]
[WhiteElo "2566"]
[BlackElo "2371"]
[Annotator "RC"]
[PlyCount "163"]
[EventDate "2024.05.20"]
[EventType "swiss"]
[EventCountry "HUN"]
[SourceTitle "playchess.com"]
[Source "ChessBase"]
[SourceQuality "1"]
[TimeControl "40/5400+30:1800+30"]

1. e4 {[%emt 0:00:33]} e5 {[%emt 0:00:58]} 2. Nf3 {[%emt 0:00:07]} Nc6 {[%emt 0:00:06]} 3. Bb5 {[%emt 0:00:06]} a6 {[%emt 0:00:07]} 4. Ba4 {[%emt 0:00:06]} Nf6 {[%emt 0:00:05]} 5. O-O {[%emt 0:00:09]} Be7 {[%emt 0:00:03]} 6. d3 {[%emt 0:00:33]} b5 {[%emt 0:03:56]} 7. Bb3 {[%emt 0:00:15]} d6 {[%emt 0:00:22]} 8. c3 {[%emt 0:00:29]} O-O {[%emt 0:00:39]} 9. a4 {[%emt 0:00:05]} Bb7 {[%emt 0:07:12]} 10. Ba2 {[%emt 0:02:51]} d5 {[%emt 0:04:05]} 11. Nbd2 {[%emt 0:02:44]} dxe4 {[%emt 0:03:20]} 12. Nxe4 {[%emt 0:01:16]} Qd7 {[%emt 0:01:32]} 13. Bg5 {[%emt 0:14:46]} Rad8 {[%emt 0:03:06]} 14. Nxf6+ {[%emt 0:06:41]} Bxf6 {[%emt 0:00:43]} 15. Bxf6 {[%emt 0:01:06]} gxf6 {[%emt 0:00:06]} 16. Nh4 {[%emt 0:00:26]} Kh8 {[%emt 0:02:07]} 17. Qh5 {[%emt 0:10:46]} Rg8 {[%emt 0:10:08]} 18. Qh6 {[%emt 0:04:29]} Qe7 19. Rfe1 {[%emt 0:03:10]} Bc8 {[%emt 0:02:51]} 20. axb5 {[%emt 0:02:36]} axb5 {[%emt 0:00:07]} 21. d4 {[%emt 0:00:49]} Rd6 {[%emt 0:01:26]} 22. Qh5 {[%emt 0:05:29]} Bg4 {[%emt 0:02:23]} 23. Qxf7 {[%emt 0:00:26]} Qxf7 {[%emt 0:00:06]} 24. Bxf7 {[%emt 0:00:07]} Rf8 {[%emt 0:00:22]} 25. dxe5 {[%emt 0:01:16]} fxe5 {[%emt 0:00:26]} 26. Re4 {[%emt 0:06:22]} Bd1 {[%emt 0:01:12]} 27. Nf5 {[%emt 0:02:42]} Rd2 {[%emt 0:00:42]} 28. Ne3 {[%emt 0:02:59]} Bc2 {[%emt 0:01:04]} 29. Nxc2 {[%emt 0:02:57]} Rxf7 {[%emt 0:02:38]} 30. Ra8+ {[%emt 0:06:42]} Kg7 {[%emt 0:00:05]} 31. Rg4+ {[%emt 0:00:28]} Kf6 {[%emt 0:00:57]} 32. Ne3 {[%emt 0:00:52]} Ke7 {[%emt 0:00:21]} 33. f3 {[%emt 0:07:30]} Rxb2 {[%emt 0:00:22]} 34. h4 {[%emt 0:00:10]} Rd2 {[%emt 0:03:10]} 35. h5 {[%emt 0:00:48]} Rd3 {[%emt 0:00:36]} 36. Kf2 {[%emt 0:01:01]} Rd2+ {[%emt 0:00:16]} 37. Kg3 {[%emt 0:01:35]} Rd3 {[%emt 0:00:19]} 38. Kf2 {[%emt 0:03:14]} Rd2+ {[%emt 0:00:04]} 39. Ke1 {[%emt 0:00:50]} Rd8 {[%emt 0:00:26]} 40. Rxd8 {[%emt 0:00:00]} Nxd8 {[%emt 0:00:00]} 41. Rg8 {[%emt 0:06:42]} Ne6 {[%emt 0:03:24]} 42. Rb8 {[%emt 0:05:04]} c6 {[%emt 0:00:42]} 43. c4 {[%emt 0:06:19]} bxc4 {[%emt 0:02:45]} 44. Nxc4 {[%emt 0:00:37]} Kf6 {[%emt 0:00:35]} 45. Nd6 {[%emt 0:01:23]} Ra7 {[%emt 0:00:18]} 46. Ne4+ {[%emt 0:00:51]} Kf7 {[%emt 0:00:40]} 47. Rc8 {[%emt 0:01:25]} Ra1+ {[%emt 0:02:01]} 48. Kf2 {[%emt 0:00:03]} Ra2+ {[%emt 0:00:04]} 49. Kf1 {[%emt 0:00:50]} Ra1+ {[%emt 0:00:07]} 50. Kf2 {[%emt 0:00:06]} Ra2+ {[%emt 0:00:01]} 51. Kg1 {[%emt 0:00:28]} Rc2 {[%emt 0:00:10]} 52. Ra8 {[%emt 0:06:02]} Nf4 {[%emt 0:18:11]} 53. Ra7+ {[%emt 0:02:42]} Kf8 {[%emt 0:00:46]} 54. g4 {[%emt 0:02:48]} Ne2+ {[%emt 0:00:30]} 55. Kf1 {[%emt 0:03:48]} Nd4 {[%emt 0:00:19]} 56. g5 {[%emt 0:01:01]} Nxf3 {[%emt 0:00:15]} 57. h6 {[%emt 0:01:44]} Nh2+ {[%emt 0:01:24]} 58. Ke1 {[%emt 0:00:55]} Rc4 {[%emt 0:00:19]} 59. Nd6 {[%emt 0:01:24]} Rg4 {[%emt 0:01:55]} 60. Rf7+ {[%emt 0:01:08]} Kg8 {[%emt 0:00:00]} 61. Rg7+ {[%emt 0:00:09]} Kf8 {[%emt 0:00:03]} 62. Rf7+ {[%emt 0:00:54]} Kg8 {[%emt 0:00:01]} 63. Rg7+ {[%emt 0:03:14]} Kf8 {[%emt 0:00:01]} 64. Ke2 {[%emt 0:00:07]} e4 {[%emt 0:01:21]} 65. Rf7+ {[%emt 0:00:04]} Kg8 {[%emt 0:00:01]} 66. Re7 {[%emt 0:01:55]} Rg2+ {[%emt 0:00:24]} 67. Ke3 {[%emt 0:00:33]} Nf1+ {[%emt 0:00:45]} 68. Kd4 {[%emt 0:00:53]} c5+ {[%emt 0:00:07]} 69. Kc4 {[%emt 0:00:29]} Ne3+ {[%emt 0:00:36]} 70. Kb3 {[%emt 0:01:13]} c4+ {[%emt 0:00:13]} 71. Ka3 {[%emt 0:00:17]} Rf2 {[%emt 0:00:17]} 72. Rg7+ {[%emt 0:00:26]} Kf8 {[%emt 0:00:04]} 73. Rxh7 {[%emt 0:00:13]} c3 {[%emt 0:01:00]} 74. g6 {[%emt 0:00:27]} c2 {[%emt 0:01:09]} 75. g7+ {[%emt 0:00:19]} Ke7 {[%emt 0:00:01]} 76. g8=Q+ {[%emt 0:00:11]} Kxd6 {[%emt 0:00:01]} 77. Qg3+ {[%emt 0:00:45]} Ke6 {[%emt 0:00:02]} 78. Qg6+ {[%emt 0:00:33]} Kd5 {[%emt 0:00:01]} 79. Rd7+ {[%emt 0:00:15]} Kc5 {[%emt 0:00:01]} 80. Qd6+ {[%emt 0:00:15]} Kb5 {[%emt 0:00:11]} 81. Qb4+ {[%emt 0:00:25]} Kc6 {[%emt 0:00:03]} 82. Rd6+ {[%emt 0:00:07]} 1-0

[Event "Budapest Chess Festival 2024"]
[Site "Budapest"]
[Date "2024.05.24"]
[Round "2.7"]
[White "Kadric, Denis"]
[Black "Arhan, Chethan Anand"]
[Result "1-0"]
[ECO "B28"]
[WhiteElo "2558"]
[BlackElo "2366"]
[Annotator "TA"]
[PlyCount "47"]
[EventDate "2024.05.20"]
[EventType "swiss"]
[EventCountry "HUN"]
[SourceTitle "playchess.com"]
[Source "ChessBase"]
[SourceQuality "1"]
[TimeControl "40/5400+30:1800+30"]

{[%evp 9,47,15,37,19,24,23,26,0,23,1,93,84,61,20,29,27,43,40,52,33,152,137,134,156,412,255,777,767,780,693,916,892,1385,1338,2165,2022,29992,29993,29996,29997]} 1. e4 {[%emt 0:00:33]} c5 {[%emt 0:00:35]} 2. Nf3 {[%emt 0:00:06]} a6 {[%emt 0:00:04]} 3. Nc3 {[%emt 0:00:55]} b5 {[%emt 0:00:05][%cal Bb7b5,Bb5b4][%mdl 32]} 4. g3 {[%emt 0:04:27]} Bb7 {[%emt 0:00:38]} 5. Bg2 {[%emt 0:00:05]} b4 {[%emt 0:04:48]} 6. Na4 {[%emt 0:00:05]} Qa5 {[%emt 0:08:20]} 7. c4 {[%emt 0:00:08]} Bxe4 {[%emt 0:06:03]} 8. O-O {[%emt 0:00:10] White has an edge.} Nf6 {[%emt 0:02:05]} 9. Re1 {[%emt 0:05:31][%cal Oe1e4]} (9. a3 $5) 9... Bc6 {[%emt 0:02:33]} (9... Nc6 $11 {remains equal.}) 10. b3 $16 {[%emt 0:00:03]} e6 {[%emt 0:01:13]} 11. d4 {[%emt 0:08:21]} cxd4 {[%emt 0:00:59]} 12. Nxd4 {[%emt 0:00:02]} Bxg2 {[%emt 0:00:35]} 13. Kxg2 {[%emt 0:00:01]} Qh5 {[%emt 0:09:16]} 14. Bf4 {[%emt 0:13:00][%mdl 1024] White has compensation.} Be7 {[%emt 0:22:25]} (14... Qxd1 $14 15. Raxd1 Nc6) 15. Nb6 {[%emt 0:08:25]} Ra7 {[%emt 0:00:29]} 16. Nc8 {[%emt 0:01:16] White is much more active.} ({Much less strong is} 16. Bxb8 Qxd1 17. Raxd1 Rb7 $16) ({Don't play} 16. Qxh5 $6 Nxh5 17. Bxb8 Rb7 $14) 16... Ra8 $2 {[%emt 0:02:44] This costs Black the game.} (16... Qxd1 $16 {was worth a try.} 17. Raxd1 Ra8) 17. Qd3 {[%emt 0:07:40] Threatens to win with Nxe7.} Qc5 {[%emt 0:15:21]} (17... Ng4) 18. Nxe7 $18 {[%emt 0:00:42]} Qxe7 {[%emt 0:00:05]} 19. Qf3 {[%emt 0:02:27]} d5 {[%emt 0:00:20]} 20. Nf5 {[%emt 0:00:24][%cal Bd4f5,Bf5g7,Bg7e8][%mdl 32]} Qd8 {[%emt 0:05:17]} 21. Nxg7+ {[%emt 0:00:04]} Kf8 {[%emt 0:00:05]} 22. Bh6 {[%emt 0:00:43]} Kg8 {[%emt 0:00:05] [#]} 23. Ne8 $1 {[%emt 0:02:13][%mdl 512]} Nbd7 {[%emt 0:00:48] [#]} (23... Ne4 24. Rxe4) 24. Re5 $3 {[%emt 0:00:05][%mdl 512] Weighted Error Value: White=0.33/Black=0.86.  Loses game:     	---       	Black=1      Mistake:       	---       	Black=3      Inaccurate:     	White=2     	---        OK:         	White=2     	Black=4      Best:        	White=3     	Black=1} 1-0

[Event "Budapest Chess Festival 2024"]
[Site "Budapest"]
[Date "2024.05.24"]
[Round "2.8"]
[White "Cieslak, Patryk"]
[Black "Nasuta, Grzegorz"]
[Result "1/2-1/2"]
[ECO "B48"]
[WhiteElo "2369"]
[BlackElo "2547"]
[Annotator "TA"]
[PlyCount "105"]
[EventDate "2024.05.20"]
[EventType "swiss"]
[EventCountry "HUN"]
[SourceTitle "playchess.com"]
[Source "ChessBase"]
[SourceQuality "1"]
[TimeControl "40/5400+30:1800+30"]

{[%evp 31,105,25,52,21,8,0,24,0,0,0,0,-11,-3,-23,-33,-47,-39,-33,-7,-18,0,0,0,0,0,-8,0,-8,-8,-8,-8,-8,-8,-4,-8,-16,-15,-18,-8,-9,-18,-21,0,0,0,0,0,0,0,0,0,0,0,0,0,0,0,0,0,0,0,0,0,0,0,0,0,0,0,0,0,0,0,0,0,0]} 1. e4 {[%emt 0:00:34]} c5 {[%emt 0:00:36]} 2. Nf3 {[%emt 0:00:07]} e6 {[%emt 0:00:33]} 3. d4 {[%emt 0:00:05]} cxd4 {[%emt 0:00:06]} 4. Nxd4 {[%emt 0:00:04]} Nc6 {[%emt 0:00:05]} 5. Nc3 {[%emt 0:00:25]} Qc7 {[%emt 0:00:06]} 6. Be3 {[%emt 0:00:41]} a6 {[%emt 0:01:56]} 7. Qf3 {[%emt 0:00:06] B48: Sicilian: Taimanov: 5 Nc3 Qc7 6 Be3 a6 without Be2.} h5 {[%emt 0:00:30]} 8. O-O-O {[%emt 0:00:29]} b5 {[%emt 0:00:45]} 9. Qg3 {[%emt 0:05:34]} Qxg3 {[%emt 0:00:43]} 10. hxg3 {[%emt 0:00:06]} Bc5 {[%emt 0:00:07]} 11. Kb1 {[%emt 0:08:09]} Bxd4 {[%emt 0:01:38]} 12. Bxd4 {[%emt 0:00:20]} Nxd4 {[%emt 0:00:05]} 13. Rxd4 {[%emt 0:00:07]} Ne7 $146 {[%emt 0:00:09]} ({Predecessor:} 13... Bb7 14. a4 bxa4 15. Nxa4 e5 16. Rd2 Nf6 17. f3 Rh6 18. Nc5 Bc8 19. Nd3 d6 {½-½ Sevian,S (2684)-Gukesh,D (2732) Sharjah Masters 6th 2023 (7)}) 14. Be2 {[%emt 0:10:28]} g6 {[%emt 0:02:28]} 15. g4 {[%emt 0:11:00]} h4 {[%emt 0:04:02]} 16. g5 {[%emt 0:01:20]} Bb7 {[%emt 0:07:10]} 17. a3 {[%emt 0:14:33]} O-O-O {[%emt 0:31:09]} 18. a4 {[%emt 0:03:01]} Nc6 {[%emt 0:05:36]} 19. Rd3 {[%emt 0:01:19]} b4 {[%emt 0:00:08]} 20. Na2 {[%emt 0:01:12]} a5 {[%emt 0:03:16]} 21. Rdh3 {[%emt 0:01:11]} d5 {[%emt 0:00:55]} 22. exd5 {[%emt 0:01:40]} Rxd5 {[%emt 0:03:03]} 23. Rxh4 {[%emt 0:00:34]} Rxh4 {[%emt 0:00:09]} 24. Rxh4 {[%emt 0:00:02]} Rd2 {[%emt 0:14:14]} 25. Bf3 {[%emt 0:08:29]} Nd4 {[%emt 0:16:48]} 26. Bxb7+ {[%emt 0:02:18]} Kxb7 {[%emt 0:00:01]} 27. Nc1 $1 {[%emt 0:01:38]} e5 {[%emt 0:06:17]} 28. c3 {[%emt 0:05:22]} bxc3 {[%emt 0:01:11]} 29. bxc3 {[%emt 0:00:02]} Nc6 {[%emt 0:00:35]} 30. f4 {[%emt 0:10:59]} Rxg2 {[%emt 0:00:34]} 31. Rh7 {[%emt 0:00:04]} Nd8 {[%emt 0:00:31]} 32. fxe5 {[%emt 0:00:09]} Kb6 {[%emt 0:00:28]} 33. e6 {[%emt 0:03:36]} fxe6 {[%emt 0:00:16]} 34. Rd7 {[%emt 0:01:04]} Nb7 {[%emt 0:00:03]} 35. Nd3 {[%emt 0:00:16]} Rxg5 {[%emt 0:00:20]} 36. Re7 {[%emt 0:04:02]} Nc5 {[%emt 0:01:25]} 37. Nxc5 {[%emt 0:02:01]} Rxc5 {[%emt 0:00:24]} 38. Rxe6+ {[%emt 0:00:50]} Rc6 {[%emt 0:00:00]} 39. Re5 {[%emt 0:01:22]} Rxc3 {[%emt 0:00:24]} 40. Rg5 $1 {[%emt 0:00:00]} Rc6 {[%emt 0:00:00]} 41. Kb2 {[%emt 0:01:00]} Ka6 {[%emt 0:00:50]} 42. Kb3 {[%emt 0:00:34]} Rb6+ {[%emt 0:01:49]} 43. Ka3 {[%emt 0:01:19]} Rf6 {[%emt 0:00:21]} 44. Kb3 {[%emt 0:00:15]} Re6 {[%emt 0:00:11]} 45. Ka3 {[%emt 0:00:44]} Rb6 {[%emt 0:00:11]} 46. Ka2 {[%emt 0:00:30]} Rf6 {[%emt 0:00:07]} 47. Kb3 $1 {[%emt 0:00:10]} Rf3+ {[%emt 0:00:04]} 48. Kb2 {[%emt 0:00:07]} Rf2+ {[%emt 0:00:05]} 49. Kb3 {[%emt 0:00:06]} Rf3+ {[%emt 0:00:14]} 50. Kb2 {[%emt 0:00:07]} Rf2+ {[%emt 0:00:04]} 51. Kb3 {[%emt 0:00:04]} Rf3+ {[%emt 0:00:03]} 52. Kb2 {[%emt 0:00:06]} Rf2+ {[%emt 0:00:08]} 53. Kb3 {[%emt 0:00:05]} 1/2-1/2

[Event "Budapest Chess Festival 2024"]
[Site "Budapest"]
[Date "2024.05.24"]
[Round "2.9"]
[White "Samunenkov, Ihor"]
[Black "Papp, Levente"]
[Result "1-0"]
[ECO "A46"]
[WhiteElo "2547"]
[BlackElo "2358"]
[Annotator "TA"]
[PlyCount "81"]
[EventDate "2024.05.20"]
[EventType "swiss"]
[EventCountry "HUN"]
[SourceTitle "playchess.com"]
[Source "ChessBase"]
[SourceQuality "1"]
[TimeControl "40/5400+30:1800+30"]

{[%evp 11,81,-1,18,23,28,10,6,0,21,21,20,9,27,19,78,78,76,78,85,77,83,73,105,85,102,99,110,115,118,109,114,108,112,112,112,112,156,156,156,156,156,156,225,215,227,218,377,344,365,360,598,597,541,449,659,664,1050,1000,1374,1377,1139,941,29989,29990,29990,29991,29991,29992,29997,29998,29998,29999]} 1. d4 {[%emt 0:00:36]} Nf6 {[%emt 0:02:13]} 2. Nf3 {[%emt 0:00:10]} e6 {[%emt 0:01:49]} 3. Bf4 {[%emt 0:00:19]} c5 {[%emt 0:06:57]} 4. e3 {[%emt 0:00:51]} d5 {[%emt 0:00:37]} 5. c3 {[%emt 0:00:28]} Nc6 {[%emt 0:01:14]} 6. Nbd2 {[%emt 0:00:23]} cxd4 {[%emt 0:02:22]} 7. exd4 {[%emt 0:00:18]} Nh5 {[%emt 0:00:13]} 8. Be3 {[%emt 0:02:13]} Bd6 {[%emt 0:06:06]} 9. Ne5 {[%emt 0:01:51] The position is equal.} Nf6 {[%emt 0:00:07]} 10. f4 {[%emt 0:00:23]} Qb6 {[%emt 0:05:05]} 11. Qb3 {[%emt 0:02:35]} Qxb3 {[%emt 0:02:21]} 12. axb3 {[%emt 0:01:43]} Ng8 {[%emt 0:02:42]} (12... Ne7 $11) 13. Nxc6 $16 {[%emt 0:20:40] Black is now going downhill.} bxc6 {[%emt 0:00:07]} 14. Ba6 {[%emt 0:00:13]} Kd7 {[%emt 0:12:34]} 15. Ke2 {[%emt 0:09:13]} Ne7 {[%emt 0:01:20]} 16. b4 {[%emt 0:00:52]} Kc7 {[%emt 0:08:16]} 17. Bd3 {[%emt 0:07:06]} h5 {[%emt 0:10:04]} 18. Nf3 {[%emt 0:05:18]} Bd7 {[%emt 0:02:18]} 19. Ra6 {[%emt 0:02:43]} Kb7 {[%emt 0:13:08]} 20. Rha1 {[%emt 0:05:08]} Bc7 {[%emt 0:00:42]} 21. g3 {[%emt 0:08:46]} f6 {[%emt 0:01:32]} 22. Nd2 {[%emt 0:04:26]} Bb6 {[%emt 0:04:40]} 23. Nb3 {[%emt 0:02:32]} Be8 {[%emt 0:05:26]} 24. Nc5+ {[%emt 0:06:24]} Bxc5 {[%emt 0:00:06]} 25. dxc5 {[%emt 0:00:23]} Bd7 {[%emt 0:04:12] Black is weak on the dark squares} 26. Kd2 {[%emt 0:04:08] White is much more active.} Nc8 {[%emt 0:01:36] [#]} (26... Rhf8 $16 27. R1a5 (27. Bd4 Rfe8 $16) 27... Rfc8) 27. b3 $1 $18 {[%emt 0:03:44][%cal Bb2b3,Bb3b4,Bb4b5,Bb5b6][%mdl 32]} h4 {[%emt 0:04:28]} 28. g4 {[%emt 0:00:41]} e5 $2 {[%emt 0:01:28]} (28... Ne7 {might work better.} 29. c4 Rhd8) 29. fxe5 {[%emt 0:02:20]} fxe5 {[%emt 0:00:01]} 30. Rf1 Be6 {[%emt 0:01:04] Prevents Rf7+.} (30... Be8 31. Bg5 Rb8) 31. b5 {[%emt 0:00:45][%cal Bb4b5,Bb5c6,Bc6c7][%mdl 32]} Ne7 {[%emt 0:00:20]} 32. b4 {[%emt 0:01:25]} d4 {[%emt 0:00:50]} (32... Rhc8 $142 33. Rfa1 d4) 33. cxd4 {[%emt 0:00:22]} Rad8 {[%emt 0:00:21]} 34. Rfa1 {[%emt 0:00:34]} Nc8 {[%emt 0:00:17]} 35. bxc6+ {[%emt 0:00:14]} Kc7 {[%emt 0:00:15][%cal Bb7c7,Bc7b8,Bb8c8][%mdl 32]} 36. b5 {[%emt 0:00:15] [#] Intending Rxa7+ and mate.} Rhf8 {[%emt 0:00:46]} 37. Rxa7+ {[%emt 0:00:32] White mates.} Nxa7 {[%emt 0:00:05]} 38. Rxa7+ {[%emt 0:00:06]} Kb8 {[%emt 0:00:28]} 39. b6 {[%emt 0:00:09]} Rde8 {[%emt 0:00:52]} 40. c7+ {[%emt 0:00:00]} Kc8 {[%emt 0:00:00]} 41. Ba6+ {[%emt 0:00:30] Weighted Error Value: White=0.06 (flawless) /Black=0.51.  Mistake:       	---       	Black=5      Inaccurate:     	---       	Black=3      OK:         	White=14    	Black=7      Best:        	---       	Black=1} 1-0

[Event "Budapest Chess Festival 2024"]
[Site "Budapest"]
[Date "2024.05.24"]
[Round "2.10"]
[White "Lewtak, Damian"]
[Black "Hera, Imre Jr."]
[Result "0-1"]
[ECO "B41"]
[WhiteElo "2362"]
[BlackElo "2542"]
[Annotator "RC"]
[PlyCount "144"]
[EventDate "2024.05.20"]
[EventType "swiss"]
[EventCountry "HUN"]
[SourceTitle "playchess.com"]
[Source "ChessBase"]
[SourceQuality "1"]
[TimeControl "40/5400+30:1800+30"]

1. e4 {[%emt 0:00:32]} c5 {[%emt 0:01:08]} 2. Nf3 {[%emt 0:00:05]} e6 {[%emt 0:00:12]} 3. d4 {[%emt 0:00:05]} cxd4 {[%emt 0:00:04]} 4. Nxd4 {[%emt 0:00:03]} a6 {[%emt 0:00:05]} 5. c4 {[%emt 0:00:04]} Nf6 {[%emt 0:00:09]} 6. Nc3 {[%emt 0:00:05]} Qc7 {[%emt 0:00:22]} 7. Be2 {[%emt 0:00:11]} b6 {[%emt 0:02:17]} 8. f3 {[%emt 0:02:58]} Bb7 {[%emt 0:00:20]} 9. Be3 {[%emt 0:00:46]} Be7 {[%emt 0:05:49]} 10. Qd2 {[%emt 0:09:31]} O-O {[%emt 0:01:21]} 11. O-O {[%emt 0:00:11]} d6 {[%emt 0:00:10]} 12. Rfc1 {[%emt 0:00:48]} Rc8 {[%emt 0:08:52]} 13. Kh1 {[%emt 0:00:57]} Qd8 {[%emt 0:00:30]} 14. a4 {[%emt 0:08:05]} Nc6 {[%emt 0:02:28]} 15. Nxc6 {[%emt 0:01:34]} Bxc6 {[%emt 0:00:21]} 16. Bf1 {[%emt 0:00:57]} Nd7 {[%emt 0:01:04]} 17. Qf2 {[%emt 0:05:29]} Nc5 {[%emt 0:02:31]} 18. Rd1 {[%emt 0:02:24]} a5 {[%emt 0:09:19]} 19. Nb5 {[%emt 0:10:55]} Qf8 {[%emt 0:00:30]} 20. Ra3 {[%emt 0:05:37]} Rd8 {[%emt 0:00:51]} 21. Bxc5 {[%emt 0:01:07]} dxc5 {[%emt 0:00:42]} 22. Rad3 {[%emt 0:03:09]} Rxd3 {[%emt 0:07:28]} 23. Rxd3 {[%emt 0:00:09]} Bf6 {[%emt 0:03:28]} 24. Rd2 {[%emt 0:04:12]} Rd8 {[%emt 0:06:49]} 25. b3 {[%emt 0:01:29]} g5 {[%emt 0:07:24]} 26. Qe3 {[%emt 0:04:31]} h6 {[%emt 0:08:34]} 27. Rxd8 {[%emt 0:01:31]} Qxd8 {[%emt 0:00:38]} 28. Qd3 {[%emt 0:03:03]} Bd4 {[%emt 0:11:04]} 29. Nxd4 {[%emt 0:03:01]} Qxd4 {[%emt 0:00:30]} 30. Qc2 {[%emt 0:15:57]} Kg7 {[%emt 0:00:23]} 31. h3 {[%emt 0:00:26]} h5 {[%emt 0:01:20]} 32. Qc1 {[%emt 0:05:53]} f6 {[%emt 0:07:09]} 33. Qe1 {[%emt 0:03:29]} h4 {[%emt 0:05:14]} 34. g3 {[%emt 0:00:18]} hxg3 {[%emt 0:01:22]} 35. Qxg3 {[%emt 0:00:09]} e5 {[%emt 0:00:34]} 36. Qe1 {[%emt 0:04:19]} Kf7 {[%emt 0:02:35]} 37. Bg2 {[%emt 0:00:41]} Qd3 {[%emt 0:03:02]} 38. h4 {[%emt 0:00:04]} Qxb3 {[%emt 0:00:18]} 39. hxg5 {[%emt 0:00:06]} Qxc4 {[%emt 0:00:55]} 40. Qb1 {[%emt 0:00:00]} Qb4 {[%emt 0:00:00]} 41. Qc1 {[%emt 0:07:02]} Qb3 {[%emt 0:10:28]} 42. gxf6 {[%emt 0:06:56]} Qe6 {[%emt 0:00:06]} 43. f4 {[%emt 0:00:19]} Qxf6 {[%emt 0:00:32]} 44. f5 {[%emt 0:00:53]} Ke7 {[%emt 0:06:37]} 45. Qc4 {[%emt 0:03:17]} Bd7 {[%emt 0:06:52]} 46. Qb3 {[%emt 0:03:50]} Be8 {[%emt 0:01:18]} 47. Kg1 {[%emt 0:03:11]} Bf7 {[%emt 0:00:17]} 48. Qe3 {[%emt 0:01:36]} Be8 {[%emt 0:00:35]} 49. Qb3 {[%emt 0:00:32]} Kf8 {[%emt 0:03:39]} 50. Bf3 {[%emt 0:02:10]} Qd6 {[%emt 0:00:41]} 51. Kg2 {[%emt 0:00:56]} Bf7 {[%emt 0:00:28]} 52. Qe3 {[%emt 0:00:29]} c4 {[%emt 0:00:18]} 53. Be2 {[%emt 0:04:02]} Qc6 {[%emt 0:00:52]} 54. Bd1 {[%emt 0:01:23]} c3 {[%emt 0:00:56]} 55. Bc2 {[%emt 0:00:37]} Qc4 {[%emt 0:01:04]} 56. Kf3 {[%emt 0:01:17]} Qd4 {[%emt 0:01:30]} 57. Qh6+ {[%emt 0:02:44]} Ke7 {[%emt 0:00:22]} 58. Qh4+ {[%emt 0:00:13]} Kd7 {[%emt 0:01:00]} 59. Qh7 {[%emt 0:00:24]} Qc4 {[%emt 0:00:26]} 60. Ke3 {[%emt 0:01:12]} Qc5+ {[%emt 0:01:03]} 61. Ke2 {[%emt 0:01:28]} Qe7 {[%emt 0:00:53]} 62. Qh6 {[%emt 0:01:09]} Bc4+ {[%emt 0:00:08]} 63. Bd3 {[%emt 0:00:35]} Qc5 {[%emt 0:00:51]} 64. Qg7+ {[%emt 0:00:51]} Kc6 {[%emt 0:00:40]} 65. Qh6+ {[%emt 0:00:28]} Kb7 {[%emt 0:00:08]} 66. f6 {[%emt 0:00:32]} c2 {[%emt 0:01:27]} 67. Qg7+ {[%emt 0:00:28]} Ka6 {[%emt 0:00:40]} 68. Qg8 {[%emt 0:00:29]} Ka7 {[%emt 0:01:28]} 69. Bxc4 {[%emt 0:00:30]} c1=Q {[%emt 0:00:10]} 70. Qf7+ {[%emt 0:00:24]} Kb8 {[%emt 0:00:04]} 71. Qe8+ {[%emt 0:00:39]} Qc8 {[%emt 0:00:14]} 72. Qxe5+ {[%emt 0:00:08]} Qc7 {[%emt 0:00:10]} 0-1